[Event "SVK Amateur-ch 2020"]
[Site "Topolcany"]
[Date "2020.07.13"]
[Round "6.15"]
[White "Bochnicka, Vladimir"]
[Black "Stevik, Patrik ml."]
[Result "1-0"]
[ECO "B00"]
[WhiteElo "2123"]
[BlackElo "2047"]
[Annotator "ChessBase"]
[PlyCount "97"]
[EventDate "2020.07.10"]
[EventType "swiss"]
[EventCountry "SVK"]
[SourceTitle "playchess.com"]
[Source "ChessBase"]
[SourceQuality "1"]
[TimeControl "3600+30"]

1. e4 {[%emt 0:00:00]} b6 {[%emt 0:00:37]} 2. d4 {[%emt 0:00:00]} Bb7 {[%emt 0:00:08]} 3. Bd3 {[%emt 0:00:08]} e6 {[%emt 0:01:05]} 4. Nf3 {[%emt 0:00:11]} Be7 {[%emt 0:00:59]} 5. O-O {[%emt 0:00:11]} c5 {[%emt 0:01:01]} 6. c3 {[%emt 0:00:10]} d6 {[%emt 0:00:42]} 7. Re1 {[%emt 0:00:35]} Nf6 {[%emt 0:00:18]} 8. Nbd2 {[%emt 0:00:21]} Nbd7 {[%emt 0:01:33]} 9. Nf1 {[%emt 0:00:24]} Rc8 {[%emt 0:01:39]} 10. Ng3 {[%emt 0:04:50]} Qc7 {[%emt 0:03:16]} 11. Bd2 {[%emt 0:00:27]} O-O {[%emt 0:06:05]} 12. Rc1 {[%emt 0:02:38]} Qb8 {[%emt 0:05:00]} 13. Qe2 {[%emt 0:03:12]} cxd4 {[%emt 0:04:31]} 14. cxd4 {[%emt 0:00:23]} Rxc1 {[%emt 0:00:58]} 15. Rxc1 {[%emt 0:00:08]} Rc8 {[%emt 0:00:14]} 16. Qd1 {[%emt 0:04:27]} Rxc1 {[%emt 0:05:10]} 17. Qxc1 {[%emt 0:00:29]} Qc8 {[%emt 0:00:55]} 18. Qxc8+ {[%emt 0:01:22]} Bxc8 {[%emt 0:00:01]} 19. Bb4 {[%emt 0:02:40]} Kf8 {[%emt 0:03:42]} 20. Kf1 {[%emt 0:02:19]} g6 {[%emt 0:02:42]} 21. Ne2 {[%emt 0:00:22]} Bb7 {[%emt 0:03:47]} 22. Nc3 {[%emt 0:02:16]} Ne8 {[%emt 0:07:14]} 23. Nd2 {[%emt 0:03:51]} Nc7 {[%emt 0:06:13]} 24. f3 {[%emt 0:01:40]} Ba6 {[%emt 0:01:34]} 25. Ke2 {[%emt 0:00:59]} Bxd3+ {[%emt 0:00:42]} 26. Kxd3 {[%emt 0:00:01]} d5 {[%emt 0:00:34]} 27. Bxe7+ {[%emt 0:01:08]} Kxe7 {[%emt 0:00:01]} 28. e5 {[%emt 0:00:43]} f6 {[%emt 0:01:28]} 29. f4 {[%emt 0:00:26]} f5 {[%emt 0:03:43]} 30. b4 {[%emt 0:02:02]} a6 {[%emt 0:01:03]} 31. a4 {[%emt 0:02:38]} Nb8 {[%emt 0:02:06]} 32. b5 {[%emt 0:02:53]} a5 {[%emt 0:00:59]} 33. Ke3 {[%emt 0:00:19]} Nd7 {[%emt 0:00:16]} 34. Kf3 {[%emt 0:00:52]} Kf7 {[%emt 0:01:12]} 35. h3 {[%emt 0:01:27]} Nf8 {[%emt 0:01:42]} 36. g4 {[%emt 0:01:22]} Ne8 {[%emt 0:01:46]} 37. Nd1 {[%emt 0:00:10]} Nd7 {[%emt 0:00:51]} 38. Ne3 {[%emt 0:00:21]} Ng7 {[%emt 0:00:26]} 39. Kg3 {[%emt 0:00:19]} Ne8 {[%emt 0:00:15]} 40. Nf3 {[%emt 0:00:19]} Nc7 {[%emt 0:00:41]} 41. Ng5+ Kg7 42. Nf1 {[%emt 0:03:46]} Nf8 {[%emt 0:00:40]} 43. Kh4 {[%emt 0:00:29]} Ne8 {[%emt 0:01:22]} 44. Kg3 {[%emt 0:02:23]} Nd7 45. Nxe6+ {[%emt 0:00:12]} Kf7 {[%emt 0:00:23]} 46. Ng5+ {[%emt 0:00:29]} Kg7 {[%emt 0:00:02]} 47. gxf5 {[%emt 0:00:11]} gxf5 {[%emt 0:00:02]} 48. Ne3 {[%emt 0:00:21]} Nc7 {[%emt 0:00:47]} 49. Nxf5+ {[%emt 0:00:20]} 1-0

[Event "SVK Amateur-ch 2020"]
[Site "Topolcany"]
[Date "2020.07.13"]
[Round "6.16"]
[White "Garban, Mario"]
[Black "Sarkozi, Szabolcs"]
[Result "1-0"]
[ECO "B30"]
[WhiteElo "2031"]
[BlackElo "2123"]
[Annotator "ChessBase"]
[PlyCount "117"]
[EventDate "2020.07.10"]
[EventType "swiss"]
[EventCountry "SVK"]
[SourceTitle "playchess.com"]
[Source "ChessBase"]
[SourceQuality "1"]
[TimeControl "3600+30"]

1. e4 {[%emt 0:00:00]} c5 {[%emt 0:05:59]} 2. Nf3 {[%emt 0:00:00]} Nc6 {[%emt 0:00:11]} 3. Bc4 {[%emt 0:00:53]} e5 {[%emt 0:00:53]} 4. d3 {[%emt 0:06:31]} Be7 {[%emt 0:00:44]} 5. Nc3 {[%emt 0:01:21]} d6 {[%emt 0:00:35]} 6. Nd5 {[%emt 0:03:36]} Nf6 {[%emt 0:00:47]} 7. Nxe7 {[%emt 0:00:25]} Nxe7 {[%emt 0:01:37]} 8. Bg5 {[%emt 0:03:44]} Ng6 {[%emt 0:02:16]} 9. Bb5+ {[%emt 0:06:53]} Bd7 {[%emt 0:03:23]} 10. Bxd7+ {[%emt 0:00:52]} Qxd7 {[%emt 0:02:50]} 11. Nh4 {[%emt 0:01:22]} Nxh4 {[%emt 0:03:42]} 12. Bxh4 {[%emt 0:00:07]} Qe6 {[%emt 0:02:48]} 13. h3 {[%emt 0:02:10]} Nd7 {[%emt 0:03:09]} 14. Qg4 {[%emt 0:01:09]} Qxg4 {[%emt 0:05:33]} 15. hxg4 {[%emt 0:00:07]} Nb6 {[%emt 0:05:52]} 16. O-O-O {[%emt 0:01:26]} Kd7 {[%emt 0:02:12]} 17. c3 {[%emt 0:00:59]} Ke6 {[%emt 0:01:20]} 18. Bg3 {[%emt 0:04:31]} f6 {[%emt 0:02:41]} 19. d4 {[%emt 0:05:37]} Rac8 {[%emt 0:02:45]} 20. d5+ {[%emt 0:03:31]} Kf7 {[%emt 0:04:02]} 21. f3 {[%emt 0:00:59]} c4 {[%emt 0:04:31]} 22. Bf2 {[%emt 0:00:39]} Nd7 {[%emt 0:00:14]} 23. Kc2 {[%emt 0:07:27]} a6 {[%emt 0:02:44]} 24. b4 {[%emt 0:04:36]} cxb3+ {[%emt 0:01:31]} 25. axb3 {[%emt 0:00:07]} h6 {[%emt 0:00:22]} 26. Kb2 {[%emt 0:01:36]} Rc7 {[%emt 0:01:03]} 27. Rc1 {[%emt 0:00:30]} Rhc8 {[%emt 0:01:30]} 28. c4 {[%emt 0:00:17]} Nc5 {[%emt 0:02:18]} 29. Bxc5 {[%emt 0:01:46]} Rxc5 {[%emt 0:00:03]} 30. Rc2 {[%emt 0:01:04]} Kg6 {[%emt 0:03:10]} 31. g3 {[%emt 0:01:01]} a5 {[%emt 0:01:02]} 32. Rc3 {[%emt 0:05:51]} b6 {[%emt 0:01:47]} 33. Rc2 {[%emt 0:01:29]} b5 {[%emt 0:01:54]} 34. Rhc1 {[%emt 0:00:10]} a4 {[%emt 0:00:33]} 35. b4 {[%emt 0:00:59]} Rxc4 {[%emt 0:00:36]} 36. Rxc4 {[%emt 0:00:04]} bxc4 {[%emt 0:00:13]} 37. Ka3 {[%emt 0:00:42]} Kf7 {[%emt 0:00:53]} 38. Rc3 {[%emt 0:01:22]} g6 {[%emt 0:00:30]} 39. Kxa4 {[%emt 0:00:09]} f5 {[%emt 0:00:24]} 40. gxf5 {[%emt 0:01:35]} gxf5 {[%emt 0:00:01]} 41. exf5 {[%emt 0:00:22]} Kf6 {[%emt 0:00:25]} 42. b5 {[%emt 0:00:52]} Kxf5 {[%emt 0:00:51]} 43. b6 {[%emt 0:00:19]} e4 {[%emt 0:00:31]} 44. Kb5 {[%emt 0:01:30]} exf3 {[%emt 0:00:56]} 45. b7 {[%emt 0:00:28]} Rb8 {[%emt 0:00:21]} 46. Kc6 {[%emt 0:00:10]} Ke4 {[%emt 0:00:36]} 47. Rxc4+ {[%emt 0:00:15]} Kd3 {[%emt 0:00:33]} 48. Rf4 {[%emt 0:00:24]} Ke2 {[%emt 0:00:12]} 49. Kc7 {[%emt 0:00:20]} Rxb7+ {[%emt 0:00:30]} 50. Kxb7 {[%emt 0:00:08]} f2 {[%emt 0:00:01]} 51. Kc6 {[%emt 0:00:15]} f1=Q {[%emt 0:00:04]} 52. Rxf1 {[%emt 0:00:07]} Kxf1 {[%emt 0:00:01]} 53. Kxd6 {[%emt 0:00:17]} Kf2 {[%emt 0:00:15]} 54. g4 {[%emt 0:00:44]} Kf3 {[%emt 0:00:01]} 55. Ke5 {[%emt 0:00:16]} Kxg4 {[%emt 0:00:02]} 56. d6 {[%emt 0:00:13]} h5 {[%emt 0:00:02]} 57. d7 {[%emt 0:00:07]} h4 {[%emt 0:00:02]} 58. d8=Q {[%emt 0:00:09]} Kh3 {[%emt 0:00:02]} 59. Qg5 {[%emt 0:00:15]} 1-0

[Event "SVK Amateur-ch 2020"]
[Site "Topolcany"]
[Date "2020.07.13"]
[Round "6.16"]
[White "Podoba, Milan"]
[Black "Malinovsky, Jozef"]
[Result "1-0"]
[ECO "B22"]
[WhiteElo "2027"]
[BlackElo "1698"]
[Annotator "RC"]
[PlyCount "53"]
[EventDate "2020.07.10"]
[EventType "swiss"]
[EventCountry "SVK"]
[SourceTitle "playchess.com"]
[Source "ChessBase"]
[SourceQuality "1"]
[TimeControl "3600+30"]

1. e4 {[%emt 0:00:00]} c5 {[%emt 0:00:00]} 2. c3 {[%emt 0:00:00]} e5 {[%emt 0:00:36]} 3. Nf3 {[%emt 0:00:19]} Nc6 {[%emt 0:00:07]} 4. d4 {[%emt 0:00:33]} cxd4 {[%emt 0:00:14]} 5. cxd4 {[%emt 0:00:08]} exd4 {[%emt 0:02:28]} 6. Nxd4 {[%emt 0:03:53]} Bc5 {[%emt 0:03:39]} 7. Nb3 {[%emt 0:05:34]} Bb6 {[%emt 0:03:02]} 8. Bc4 {[%emt 0:01:23]} Qf6 {[%emt 0:06:20]} 9. O-O {[%emt 0:02:42]} Nh6 {[%emt 0:02:36]} 10. Nc3 {[%emt 0:01:05]} Ne7 {[%emt 0:00:51]} 11. Qh5 {[%emt 0:07:17]} Nhg8 {[%emt 0:02:01]} 12. Be3 {[%emt 0:04:16]} Nh6 {[%emt 0:04:33]} 13. Bxh6 {[%emt 0:10:15]} gxh6 {[%emt 0:00:04]} 14. e5 {[%emt 0:04:11]} Qg6 {[%emt 0:03:35]} 15. Qf3 {[%emt 0:02:48]} Rg8 {[%emt 0:02:28]} 16. Ne4 {[%emt 0:01:07]} Kf8 {[%emt 0:01:33]} 17. Nd6 {[%emt 0:02:38]} Nc6 {[%emt 0:01:05]} 18. Nxf7 {[%emt 0:03:40]} Kg7 {[%emt 0:00:57]} 19. Qc3 {[%emt 0:04:14]} Kf8 {[%emt 0:00:55]} 20. g3 {[%emt 0:00:47]} Rg7 {[%emt 0:02:09]} 21. Nd6 {[%emt 0:00:31]} Ke7 {[%emt 0:03:47]} 22. Bd3 {[%emt 0:02:00]} Qg5 {[%emt 0:00:51]} 23. Nf5+ {[%emt 0:00:31]} Kd8 {[%emt 0:00:04]} 24. Nxg7 {[%emt 0:00:57]} Nxe5 {[%emt 0:00:28]} 25. Nf5 {[%emt 0:02:29]} Nf3+ {[%emt 0:04:25]} 26. Kg2 {[%emt 0:00:23]} Qh5 {[%emt 0:00:27]} 27. Qf6+ {[%emt 0:01:00]} 1-0

[Event "SVK Amateur-ch 2020"]
[Site "Topolcany"]
[Date "2020.07.13"]
[Round "6.17"]
[White "Balazs, Ladislav"]
[Black "Panko, Radoslav"]
[Result "0-1"]
[ECO "A40"]
[WhiteElo "2088"]
[BlackElo "2025"]
[Annotator "ChessBase"]
[PlyCount "80"]
[EventDate "2020.07.10"]
[EventType "swiss"]
[EventCountry "SVK"]
[SourceTitle "playchess.com"]
[Source "ChessBase"]
[SourceQuality "1"]
[TimeControl "3600+30"]

1. d4 {[%emt 0:00:00]} e6 {[%emt 0:00:00]} 2. c4 {[%emt 0:00:05]} b6 {[%emt 0:00:00]} 3. a3 {[%emt 0:01:02]} Bb7 {[%emt 0:00:17]} 4. Nc3 {[%emt 0:00:13]} f5 {[%emt 0:02:09]} 5. d5 {[%emt 0:00:26]} Nf6 {[%emt 0:05:42]} 6. Nf3 {[%emt 0:04:30]} Be7 {[%emt 0:00:56]} 7. g3 {[%emt 0:05:54]} Ne4 {[%emt 0:18:22]} 8. Bg2 Nxc3 {[%emt 0:01:17]} 9. bxc3 {[%emt 0:19:48]} e5 {[%emt 0:09:30]} 10. e4 {[%emt 0:11:17]} O-O {[%emt 0:06:32]} 11. exf5 {[%emt 0:03:59]} Rxf5 {[%emt 0:00:22]} 12. Qc2 {[%emt 0:00:32]} Qf8 {[%emt 0:00:57]} 13. Qe2 {[%emt 0:02:52]} d6 {[%emt 0:01:43]} 14. Nd2 {[%emt 0:04:17]} Rf7 {[%emt 0:01:21]} 15. Nf1 {[%emt 0:02:59]} Bc8 {[%emt 0:00:27]} 16. Ne3 {[%emt 0:00:49]} Bg5 {[%emt 0:01:09]} 17. O-O {[%emt 0:01:14]} Nd7 {[%emt 0:05:39]} 18. h4 {[%emt 0:02:37]} Bxe3 {[%emt 0:00:55]} 19. Bxe3 {[%emt 0:00:52]} Nf6 {[%emt 0:00:46]} 20. a4 {[%emt 0:02:13]} a5 {[%emt 0:00:33]} 21. f4 {[%emt 0:00:12]} Bg4 {[%emt 0:03:31]} 22. Qc2 {[%emt 0:00:59]} Re8 {[%emt 0:01:50]} 23. fxe5 {[%emt 0:00:07]} Rxe5 {[%emt 0:00:21]} 24. Bd4 {[%emt 0:00:54]} Ree7 {[%emt 0:01:43]} 25. Rf2 {[%emt 0:00:43]} Nh5 {[%emt 0:00:38]} 26. Rxf7 {[%emt 0:02:36]} Qxf7 {[%emt 0:01:03]} 27. Rf1 {[%emt 0:00:29]} Qg6 {[%emt 0:01:55]} 28. Qf2 {[%emt 0:00:33]} Qe8 {[%emt 0:00:30]} 29. Bf3 {[%emt 0:00:50]} Bxf3 {[%emt 0:00:30]} 30. Qxf3 {[%emt 0:00:03]} Rf7 {[%emt 0:00:37]} 31. Qg4 {[%emt 0:01:24]} Rxf1+ {[%emt 0:01:34]} 32. Kxf1 {[%emt 0:00:01]} g6 {[%emt 0:01:11]} 33. Kf2 {[%emt 0:00:53]} Ng7 {[%emt 0:00:39]} 34. Bxg7 {[%emt 0:00:43]} Kxg7 {[%emt 0:00:22]} 35. Qd4+ {[%emt 0:00:33]} Kg8 {[%emt 0:01:27]} 36. g4 {[%emt 0:00:34]} Qxa4 {[%emt 0:00:33]} 37. h5 {[%emt 0:00:20]} gxh5 {[%emt 0:00:36]} 38. gxh5 {[%emt 0:00:02]} Qc2+ {[%emt 0:00:31]} 39. Ke1 {[%emt 0:00:11]} Qf5 {[%emt 0:00:10]} 40. h6 {[%emt 0:00:40]} Qe5+ {[%emt 0:00:06]} 0-1

[Event "SVK Amateur-ch 2020"]
[Site "Topolcany"]
[Date "2020.07.13"]
[Round "6.17"]
[White "Skrinar, Marek"]
[Black "Paluska, Karol"]
[Result "1/2-1/2"]
[ECO "B19"]
[WhiteElo "1654"]
[BlackElo "1873"]
[Annotator "NA"]
[PlyCount "60"]
[EventDate "2020.07.10"]
[EventType "swiss"]
[EventCountry "SVK"]
[SourceTitle "playchess.com"]
[Source "ChessBase"]
[SourceQuality "1"]
[TimeControl "3600+30"]

{[%evp 9,54,19,18,32767,32767,8,32767,-1,-4,-14,32767,-21,-9,-7,-10,-34,17,-16,-18,-23,-25,-22,0,-6,32767,-8,24,20,32767,30,56,-21,32767,-4,-7,-29,73,32767,38,-44,-43,-36,-25,32767,32767,-39,0]} 1. e4 {[%emt 0:07:03]} c6 {[%emt 0:00:00]} 2. d4 {[%emt 0:00:39]} d5 {[%emt 0:00:00]} 3. Nd2 {[%emt 0:00:10]} dxe4 {[%emt 0:00:00]} 4. Nxe4 {[%emt 0:00:06]} Bf5 {[%emt 0:00:00]} 5. Ng3 {[%emt 0:00:15]} Bg6 $1 {[%emt 0:00:00]} 6. Nf3 {[%emt 0:00:33]} Nd7 {[%emt 0:00:06]} 7. h4 {[%emt 0:00:33]} h6 {[%emt 0:00:05]} 8. Bc4 {[%emt 0:00:57]} e6 {[%emt 0:01:29]} 9. c3 {[%emt 0:02:53] B19: Classical Caro-Kann: 4...Bf5 main line.} Ngf6 {[%emt 0:00:07]} 10. Bd3 {[%emt 0:00:29]} Bxd3 {[%emt 0:01:06]} 11. Qxd3 {[%emt 0:00:15]} Bd6 {[%emt 0:00:40]} 12. Ne4 {[%emt 0:01:39] [#]} Qc7 $146 {[%emt 0:00:50]} ({Predecessor:} 12... Nxe4 13. Qxe4 Nf6 14. Qd3 Qc7 15. Bd2 O-O-O 16. O-O-O c5 17. Kb1 Kb8 {0-1 (51) Lu,D-Yu,M Kuala Lumpur 2005}) 13. Be3 {[%emt 0:02:54]} Nxe4 {[%emt 0:03:00]} 14. Qxe4 {[%emt 0:00:13]} Nf6 {[%emt 0:00:05]} 15. Qd3 {[%emt 0:01:05]} O-O-O {[%emt 0:02:40]} 16. O-O-O {[%emt 0:02:14]} Rhe8 {[%emt 0:04:51]} 17. Qc2 {[%emt 0:03:02]} b6 {[%emt 0:11:31]} 18. Kb1 {[%emt 0:03:14]} Kb7 {[%emt 0:00:11]} 19. Rhe1 {[%emt 0:01:02]} c5 {[%emt 0:04:51]} 20. Nd2 {[%emt 0:13:46]} ({Better is} 20. dxc5 $14 Bxc5 21. Rxd8 Rxd8 22. Bxc5 Qxc5 23. Ne5) 20... c4 {[%emt 0:03:36]} 21. Ne4 {[%emt 0:01:58]} Nd5 {[%emt 0:01:26]} 22. Qa4 {[%emt 0:04:21]} Rc8 {[%emt 0:03:33]} (22... Bf8 $15) 23. g3 {[%emt 0:06:53]} a6 {[%emt 0:01:26]} ({Black should play} 23... Be7 $11) 24. Re2 {[%emt 0:01:46]} (24. Qxc4 $1 $14 Bxg3 25. fxg3 Qxc4 26. Nd6+ {[%mdl 64] Double Attack} Ka8 27. Nxc4 Rxc4 28. Bf4) 24... b5 {[%emt 0:01:41]} 25. Qc2 {[%emt 0:00:12]} Qc6 {[%emt 0:04:48]} 26. Rde1 {[%emt 0:01:50]} Ra8 {[%emt 0:00:12]} 27. Bc1 {[%emt 0:05:02]} a5 $11 {[%emt 0:03:09]} 28. f4 {[%emt 0:07:44]} Bf8 {[%emt 0:01:19]} 29. Nd2 {[%emt 0:00:47]} Rec8 {[%emt 0:00:50]} 30. f5 {[%emt 0:00:28]} Re8 {[%emt 0:02:41]} 1/2-1/2

[Event "SVK Amateur-ch 2020"]
[Site "Topolcany"]
[Date "2020.07.13"]
[Round "6.18"]
[White "Janco, Darius"]
[Black "Lecky, Juraj"]
[Result "0-1"]
[ECO "A61"]
[WhiteElo "2003"]
[BlackElo "2083"]
[Annotator "ChessBase"]
[PlyCount "62"]
[EventDate "2020.07.10"]
[EventType "swiss"]
[EventCountry "SVK"]
[SourceTitle "playchess.com"]
[Source "ChessBase"]
[SourceQuality "1"]
[TimeControl "3600+30"]

1. d4 {[%emt 0:16:46]} Nf6 {[%emt 0:01:50]} 2. c4 {[%emt 0:00:15]} c5 {[%emt 0:00:04]} 3. d5 {[%emt 0:00:16]} e6 {[%emt 0:00:04]} 4. Nc3 {[%emt 0:00:20]} exd5 {[%emt 0:00:03]} 5. cxd5 {[%emt 0:00:05]} d6 {[%emt 0:00:03]} 6. Nf3 {[%emt 0:00:20]} g6 {[%emt 0:00:04]} 7. Nd2 {[%emt 0:00:06]} Nbd7 {[%emt 0:00:13]} 8. e4 {[%emt 0:00:23]} Bg7 {[%emt 0:00:49]} 9. Be2 {[%emt 0:02:16]} O-O {[%emt 0:03:14]} 10. O-O {[%emt 0:00:40]} a6 {[%emt 0:01:16]} 11. a4 {[%emt 0:00:07]} Re8 {[%emt 0:03:19]} 12. Qc2 {[%emt 0:00:04]} Rb8 {[%emt 0:00:20]} 13. Nc4 {[%emt 0:01:14]} Nb6 {[%emt 0:03:50]} 14. Ne3 {[%emt 0:05:34]} Qe7 {[%emt 0:13:32]} 15. a5 {[%emt 0:06:13]} Na8 {[%emt 0:03:48]} 16. Bd3 {[%emt 0:05:05]} Nc7 {[%emt 0:07:36]} 17. Nc4 {[%emt 0:02:39]} Nb5 {[%emt 0:07:37]} 18. f3 {[%emt 0:02:44]} Nd4 {[%emt 0:04:20]} 19. Qd1 {[%emt 0:00:55]} Nd7 {[%emt 0:00:03]} 20. f4 {[%emt 0:03:42]} b5 {[%emt 0:01:08]} 21. axb6 {[%emt 0:02:47]} Nxb6 {[%emt 0:00:06]} 22. Na5 {[%emt 0:02:31]} Qc7 {[%emt 0:03:55]} 23. f5 {[%emt 0:04:19]} c4 {[%emt 0:06:06]} 24. f6 {[%emt 0:04:44]} cxd3 25. fxg7 {[%emt 0:01:09]} Nc2 {[%emt 0:01:50]} 26. Qxd3 {[%emt 0:05:05]} Qc5+ {[%emt 0:02:02]} 27. Kh1 {[%emt 0:00:11]} Nxa1 {[%emt 0:00:08]} 28. Nc6 {[%emt 0:00:13]} Rb7 {[%emt 0:00:33]} 29. e5 {[%emt 0:02:47]} Bf5 {[%emt 0:01:22]} 30. Qg3 {[%emt 0:00:56]} Nxd5 {[%emt 0:00:29]} 31. Nxd5 {[%emt 0:00:32]} Qxd5 {[%emt 0:00:18]} 0-1

[Event "SVK Amateur-ch 2020"]
[Site "Topolcany"]
[Date "2020.07.13"]
[Round "6.21"]
[White "Balint, Vilmos"]
[Black "Trangos, Miroslav"]
[Result "1-0"]
[ECO "C17"]
[WhiteElo "2140"]
[BlackElo "1971"]
[Annotator "ChessBase"]
[PlyCount "61"]
[EventDate "2020.07.10"]
[EventType "swiss"]
[EventCountry "SVK"]
[SourceTitle "playchess.com"]
[Source "ChessBase"]
[SourceQuality "1"]
[TimeControl "3600+30"]

1. e4 {[%emt 0:07:48]} e6 {[%emt 0:00:00]} 2. d4 {[%emt 0:00:33]} d5 {[%emt 0:00:00]} 3. Nc3 {[%emt 0:00:20]} Bb4 {[%emt 0:00:08]} 4. e5 {[%emt 0:01:10]} c5 {[%emt 0:00:18]} 5. a3 {[%emt 0:00:06]} cxd4 {[%emt 0:00:26]} 6. axb4 {[%emt 0:00:48]} dxc3 {[%emt 0:00:02]} 7. bxc3 {[%emt 0:01:24]} Qc7 {[%emt 0:01:03]} 8. Nf3 {[%emt 0:00:35]} Qxc3+ {[%emt 0:00:22]} 9. Bd2 {[%emt 0:00:03]} Qc7 {[%emt 0:00:10]} 10. Bd3 Nd7 {[%emt 0:02:35]} 11. Qe2 {[%emt 0:00:37]} Ne7 {[%emt 0:00:57]} 12. O-O {[%emt 0:02:03]} Nb6 {[%emt 0:03:21]} 13. Nd4 {[%emt 0:02:31]} Bd7 {[%emt 0:01:43]} 14. Ra5 {[%emt 0:02:48]} Nc6 {[%emt 0:04:38]} 15. Nxc6 {[%emt 0:03:23]} Bxc6 {[%emt 0:04:04]} 16. b5 {[%emt 0:00:57]} Bd7 {[%emt 0:01:58]} 17. Rfa1 {[%emt 0:02:44]} O-O {[%emt 0:03:53]} 18. R5a3 {[%emt 0:05:31]} Nc4 {[%emt 0:05:52]} 19. b6 {[%emt 0:06:17]} Qxb6 {[%emt 0:02:53]} 20. Bxh7+ {[%emt 0:01:35]} Kxh7 {[%emt 0:00:17]} 21. Rh3+ {[%emt 0:00:17]} Kg8 {[%emt 0:00:18]} 22. Qh5 {[%emt 0:00:05]} f6 {[%emt 0:05:11]} 23. Qh7+ {[%emt 0:02:54]} Kf7 {[%emt 0:00:02]} 24. exf6 {[%emt 0:03:31]} Rg8 {[%emt 0:01:52]} 25. Qh5+ {[%emt 0:01:24]} g6 {[%emt 0:02:46]} 26. Qh7+ {[%emt 0:00:29]} Kxf6 {[%emt 0:00:03]} 27. Bc3+ {[%emt 0:09:41]} e5 {[%emt 0:13:06]} 28. Qxd7 {[%emt 0:01:55]} Qd8 {[%emt 0:02:27]} 29. Rf3+ {[%emt 0:00:49]} Kg5 {[%emt 0:00:23]} 30. Qh7 {[%emt 0:03:05]} Rc8 {[%emt 0:05:20]} 31. Rf7 1-0

[Event "SVK Amateur-ch 2020"]
[Site "Topolcany"]
[Date "2020.07.13"]
[Round "6.22"]
[White "Bielik, Miroslav"]
[Black "Plasek, Zdenek"]
[Result "1-0"]
[ECO "D00"]
[WhiteElo "2133"]
[BlackElo "1966"]
[Annotator "ChessBase"]
[PlyCount "64"]
[EventDate "2020.07.10"]
[EventType "swiss"]
[EventCountry "SVK"]
[SourceTitle "playchess.com"]
[Source "ChessBase"]
[SourceQuality "1"]
[TimeControl "3600+30"]

1. d4 {[%emt 0:00:00]} d5 {[%emt 0:00:57]} 2. Bf4 {[%emt 0:00:36]} Nf6 {[%emt 0:00:46]} 3. e3 {[%emt 0:00:12]} c5 {[%emt 0:00:13]} 4. c3 {[%emt 0:00:22]} Nc6 {[%emt 0:00:20]} 5. Nd2 {[%emt 0:00:12]} e6 {[%emt 0:00:11]} 6. Ngf3 {[%emt 0:00:21]} Bd6 {[%emt 0:00:05]} 7. dxc5 {[%emt 0:01:23]} Bxc5 {[%emt 0:00:05]} 8. Be2 {[%emt 0:00:40]} O-O 9. O-O Bd6 {[%emt 0:02:20]} 10. Bg5 {[%emt 0:01:00]} h6 {[%emt 0:10:01]} 11. Bh4 {[%emt 0:02:40]} g5 {[%emt 0:00:33]} 12. Bg3 {[%emt 0:00:01]} Bxg3 {[%emt 0:00:12]} 13. hxg3 {[%emt 0:00:02]} Qe7 {[%emt 0:01:58]} 14. b4 {[%emt 0:03:32]} Nd7 {[%emt 0:01:34]} 15. e4 {[%emt 0:01:23]} Nf6 {[%emt 0:03:42]} 16. exd5 {[%emt 0:04:01]} Nxd5 {[%emt 0:00:35]} 17. Qb3 {[%emt 0:01:35]} b6 {[%emt 0:12:17]} 18. Rfe1 {[%emt 0:08:01]} Bb7 {[%emt 0:02:01]} 19. Nc4 {[%emt 0:06:25]} Nc7 {[%emt 0:06:28]} 20. b5 {[%emt 0:01:49]} Nb8 {[%emt 0:00:20]} 21. Nce5 {[%emt 0:01:20]} Nd7 {[%emt 0:00:50]} 22. Nxd7 {[%emt 0:16:05]} Qxd7 {[%emt 0:00:02]} 23. a4 {[%emt 0:00:18]} Qe7 {[%emt 0:01:18]} 24. a5 {[%emt 0:07:59]} Rfd8 {[%emt 0:00:29]} 25. Red1 {[%emt 0:02:04]} Nd5 {[%emt 0:08:27]} 26. c4 {[%emt 0:01:00]} Nf6 {[%emt 0:00:05]} 27. Qb2 {[%emt 0:01:24]} Nd7 {[%emt 0:02:43]} 28. Nh2 {[%emt 0:04:13]} Qf6 {[%emt 0:00:18]} 29. Qc2 {[%emt 0:00:18]} Ne5 {[%emt 0:02:55]} 30. a6 {[%emt 0:00:34]} Bc8 {[%emt 0:00:57]} 31. Rxd8+ {[%emt 0:00:12]} Qxd8 {[%emt 0:00:03]} 32. Qe4 {[%emt 0:00:12]} Nf3+ {[%emt 0:03:30]} 1-0